[Event "Israeli U18-Team-ch 2024"]
[Site "Rishon LeZion"]
[Date "2024.08.01"]
[Round "1.1"]
[White "Wul, Kfir"]
[Black "Vagman, Roy"]
[Result "0-1"]
[ECO "B21"]
[WhiteElo "1826"]
[BlackElo "2308"]
[Annotator "RC"]
[PlyCount "80"]
[EventDate "2024.08.01"]
[EventType "team-tourn"]
[EventCountry "ISR"]
[SourceTitle "playchess.com"]
[Source "ChessBase"]
[SourceQuality "1"]
[TimeControl "3000+10"]

1. e4 {[%emt 0:00:02]} c5 {[%emt 0:00:33]} 2. Nf3 {[%emt 0:00:05]} e6 {[%emt 0:01:34]} 3. d4 {[%emt 0:03:22]} cxd4 {[%emt 0:00:06]} 4. c3 {[%emt 0:00:15]} dxc3 {[%emt 0:00:45]} 5. Nxc3 {[%emt 0:00:02]} Nc6 {[%emt 0:00:37]} 6. Bf4 {[%emt 0:00:07]} a6 {[%emt 0:04:04]} 7. Bc4 {[%emt 0:08:32]} Nge7 {[%emt 0:01:05]} 8. O-O {[%emt 0:01:20]} Ng6 {[%emt 0:00:15]} 9. Bg3 {[%emt 0:02:15]} Be7 {[%emt 0:02:40]} 10. Qe2 {[%emt 0:02:00]} b5 {[%emt 0:02:00]} 11. Bb3 {[%emt 0:05:11]} h5 {[%emt 0:02:17]} 12. h3 {[%emt 0:05:56]} h4 {[%emt 0:00:54]} 13. Bh2 {[%emt 0:00:01]} O-O {[%emt 0:03:13]} 14. Rad1 {[%emt 0:02:37]} Bb7 {[%emt 0:04:29]} 15. Rfe1 {[%emt 0:02:29]} Rc8 {[%emt 0:02:15]} 16. Bc2 {[%emt 0:00:59]} e5 {[%emt 0:01:07]} 17. Nd5 {[%emt 0:01:20]} Bc5 {[%emt 0:00:25]} 18. a4 {[%emt 0:02:48]} Nd4 {[%emt 0:01:43]} 19. Nxd4 {[%emt 0:00:43]} Bxd4 {[%emt 0:00:12]} 20. axb5 {[%emt 0:01:18]} axb5 {[%emt 0:00:18]} 21. Bb3 {[%emt 0:00:09]} Bxd5 {[%emt 0:00:13]} 22. Bxd5 {[%emt 0:00:12]} Qb6 {[%emt 0:00:18]} 23. Rc1 {[%emt 0:05:23]} Rc5 {[%emt 0:04:02]} 24. Rxc5 {[%emt 0:01:17]} Qxc5 {[%emt 0:00:19]} 25. Rf1 {[%emt 0:01:25]} Ne7 {[%emt 0:01:30]} 26. Bb3 {[%emt 0:00:39]} Qb4 {[%emt 0:00:20]} 27. Qf3 {[%emt 0:00:01]} Bxb2 {[%emt 0:01:02]} 28. Rb1 {[%emt 0:00:37]} Qc3 {[%emt 0:00:49]} 29. Qe2 {[%emt 0:02:00]} Ba3 {[%emt 0:00:31]} 30. Qxb5 {[%emt 0:00:12]} d6 {[%emt 0:00:12]} 31. Kh1 {[%emt 0:00:36]} Bc5 {[%emt 0:00:28]} 32. Bg1 {[%emt 0:00:11]} Ng6 {[%emt 0:00:15]} 33. Kh2 {[%emt 0:00:51]} Qd2 {[%emt 0:00:17]} 34. f3 {[%emt 0:00:28]} Nf4 {[%emt 0:00:41]} 35. Qf1 {[%emt 0:00:01]} Ne2 {[%emt 0:00:22]} 36. Bxc5 {[%emt 0:00:10]} Qf4+ {[%emt 0:00:12]} 37. g3 {[%emt 0:00:06]} Nxg3 {[%emt 0:00:31]} 38. Qc1 {[%emt 0:00:19]} Nf1+ {[%emt 0:01:02]} 39. Kg1 {[%emt 0:00:05]} Nd2 {[%emt 0:00:05]} 40. Rb2 {[%emt 0:00:32]} Nxf3+ {[%emt 0:00:16]} 0-1

[Event "Israeli U18-Team-ch 2024"]
[Site "Rishon LeZion"]
[Date "2024.08.01"]
[Round "1.2"]
[White "Pelech, Roee"]
[Black "Gal, Yoav"]
[Result "1/2-1/2"]
[ECO "B07"]
[WhiteElo "2267"]
[BlackElo "1706"]
[Annotator "RC"]
[PlyCount "59"]
[EventDate "2024.08.01"]
[EventType "team-tourn"]
[EventCountry "ISR"]
[SourceTitle "playchess.com"]
[Source "ChessBase"]
[SourceQuality "1"]
[TimeControl "3000+10"]

1. d4 {[%emt 0:00:01]} Nf6 {[%emt 0:00:11]} 2. Nc3 {[%emt 0:00:02]} g6 {[%emt 0:00:22]} 3. e4 {[%emt 0:00:04]} d6 {[%emt 0:00:22]} 4. h4 {[%emt 0:00:09]} Bg7 {[%emt 0:00:27]} 5. Be2 {[%emt 0:00:09]} Nbd7 {[%emt 0:00:51]} 6. h5 {[%emt 0:00:51]} gxh5 {[%emt 0:01:01]} 7. Be3 {[%emt 0:02:26]} c5 {[%emt 0:01:43]} 8. Nh3 {[%emt 0:09:59]} Qa5 {[%emt 0:02:38]} 9. O-O {[%emt 0:01:01]} Rg8 {[%emt 0:07:57]} 10. dxc5 {[%emt 0:01:11]} Nxc5 {[%emt 0:01:23]} 11. Bb5+ {[%emt 0:04:22]} Bd7 {[%emt 0:03:37]} 12. Bxc5 {[%emt 0:01:48]} dxc5 {[%emt 0:01:07]} 13. Bxd7+ {[%emt 0:03:52]} Nxd7 {[%emt 0:00:06]} 14. Nd5 {[%emt 0:00:58]} e6 {[%emt 0:01:36]} 15. Ne3 {[%emt 0:02:15]} O-O-O {[%emt 0:03:05]} 16. Nc4 {[%emt 0:01:37]} Qc7 {[%emt 0:01:19]} 17. Qxh5 {[%emt 0:05:11]} Bd4 {[%emt 0:02:05]} 18. Kh1 {[%emt 0:05:26]} Nf6 {[%emt 0:03:04]} 19. Qe2 {[%emt 0:01:14]} Ng4 {[%emt 0:02:16]} 20. f4 {[%emt 0:00:55]} Qe7 {[%emt 0:01:59]} 21. e5 {[%emt 0:02:47]} Qh4 {[%emt 0:01:59]} 22. Qe1 {[%emt 0:01:19]} Qh5 {[%emt 0:06:30]} 23. c3 {[%emt 0:02:01]} Bf2 {[%emt 0:02:30]} 24. Rxf2 {[%emt 0:00:07]} Rd3 {[%emt 0:00:22]} 25. Kg1 {[%emt 0:03:44]} Rxh3 {[%emt 0:02:14]} 26. gxh3 {[%emt 0:00:27]} Nxe5+ {[%emt 0:01:49]} 27. Kh2 {[%emt 0:00:22]} Ng4+ {[%emt 0:01:23]} 28. Kg1 {[%emt 0:00:20]} Ne3+ {[%emt 0:00:27]} 29. Kh2 {[%emt 0:00:04]} Ng4+ {[%emt 0:00:12]} 30. Kg1 {[%emt 0:00:01]} 1/2-1/2

[Event "Israeli U18-Team-ch 2024"]
[Site "Rishon LeZion"]
[Date "2024.08.01"]
[Round "1.5"]
[White "Milikow, Elie"]
[Black "Adamchuk, Vlad"]
[Result "1-0"]
[ECO "C03"]
[WhiteElo "2399"]
[BlackElo "1790"]
[Annotator "RC"]
[PlyCount "49"]
[EventDate "2024.08.01"]
[EventType "team-tourn"]
[EventCountry "ISR"]
[SourceTitle "playchess.com"]
[Source "ChessBase"]
[SourceQuality "1"]
[TimeControl "3000+10"]

1. e4 {[%emt 0:00:04]} e6 {[%emt 0:00:04]} 2. d4 {[%emt 0:00:08]} d5 {[%emt 0:00:08]} 3. Nd2 {[%emt 0:00:43]} h6 {[%emt 0:00:25]} 4. Bd3 {[%emt 0:01:19]} c5 {[%emt 0:00:08]} 5. dxc5 {[%emt 0:00:46]} Bxc5 {[%emt 0:00:43]} 6. Ngf3 {[%emt 0:01:00]} Nf6 {[%emt 0:01:06]} 7. e5 {[%emt 0:04:33]} Nfd7 {[%emt 0:00:12]} 8. Qe2 {[%emt 0:01:36]} Nc6 {[%emt 0:02:17]} 9. c3 {[%emt 0:01:09]} Qc7 {[%emt 0:05:43]} 10. Nb3 {[%emt 0:01:13]} Be7 {[%emt 0:00:52]} 11. Bf4 {[%emt 0:01:38]} a6 {[%emt 0:04:33]} 12. Bg3 {[%emt 0:03:07]} b5 {[%emt 0:03:47]} 13. h4 {[%emt 0:04:58]} Bb7 {[%emt 0:01:56]} 14. h5 {[%emt 0:01:28]} Rc8 {[%emt 0:01:31]} 15. O-O {[%emt 0:07:18]} Nc5 {[%emt 0:03:13]} 16. Nxc5 {[%emt 0:03:27]} Bxc5 {[%emt 0:00:07]} 17. a4 {[%emt 0:01:26]} b4 {[%emt 0:06:16]} 18. Kh1 {[%emt 0:01:51]} bxc3 {[%emt 0:03:25]} 19. bxc3 {[%emt 0:00:20]} d4 {[%emt 0:00:12]} 20. Rac1 {[%emt 0:01:46]} Qa5 {[%emt 0:00:35]} 21. cxd4 {[%emt 0:00:48]} Nxd4 {[%emt 0:01:14]} 22. Nxd4 {[%emt 0:01:45]} Bxd4 {[%emt 0:00:07]} 23. Be4 {[%emt 0:00:39]} Rxc1 {[%emt 0:09:45]} 24. Rxc1 {[%emt 0:00:06]} Bxe4 {[%emt 0:01:44]} 25. Qxe4 {[%emt 0:00:21]} 1-0

[Event "Israeli U18-Team-ch 2024"]
[Site "Rishon LeZion"]
[Date "2024.08.01"]
[Round "1.6"]
[White "Wang, Daniel Z"]
[Black "Dezent, Eyal"]
[Result "0-1"]
[ECO "B12"]
[WhiteElo "1809"]
[BlackElo "2076"]
[Annotator "RC"]
[PlyCount "66"]
[EventDate "2024.08.01"]
[EventType "team-tourn"]
[EventCountry "ISR"]
[SourceTitle "playchess.com"]
[Source "ChessBase"]
[SourceQuality "1"]
[TimeControl "3000+10"]

1. e4 {[%emt 0:00:02]} c6 {[%emt 0:00:10]} 2. d4 {[%emt 0:00:05]} d5 {[%emt 0:00:04]} 3. e5 {[%emt 0:00:06]} Bf5 {[%emt 0:00:06]} 4. h4 {[%emt 0:00:09]} h5 {[%emt 0:00:04]} 5. c4 {[%emt 0:00:15]} e6 {[%emt 0:00:18]} 6. Nc3 {[%emt 0:00:03]} Ne7 {[%emt 0:00:42]} 7. Bg5 {[%emt 0:00:36]} dxc4 {[%emt 0:09:10]} 8. Bxc4 {[%emt 0:00:09]} Qb6 {[%emt 0:00:29]} 9. Qd2 {[%emt 0:06:00]} Nd5 {[%emt 0:01:30]} 10. Nge2 {[%emt 0:08:56]} Nd7 {[%emt 0:04:34]} 11. Bf4 {[%emt 0:19:01]} Nxf4 {[%emt 0:34:53]} 12. Nxf4 {[%emt 0:00:16]} O-O-O {[%emt 0:00:00]} 13. Qe3 {[%emt 0:11:16]} Qxb2 {[%emt 0:00:00]} 14. Rc1 {[%emt 0:02:20]} Ba3 {[%emt 0:00:00]} 15. Nfe2 {[%emt 0:01:25]} Qb4 {[%emt 0:00:00]} 16. Bb3 {[%emt 0:01:03]} Bxc1 {[%emt 0:00:00]} 17. Qxc1 {[%emt 0:00:39]} Nb6 {[%emt 0:00:00]} 18. O-O {[%emt 0:00:10]} Qe7 {[%emt 0:00:00]} 19. Qf4 {[%emt 0:00:29]} Rdg8 {[%emt 0:00:00]} 20. Ne4 {[%emt 0:00:12]} Bxe4 {[%emt 0:00:00]} 21. Qxe4 {[%emt 0:00:01]} g5 {[%emt 0:00:00]} 22. hxg5 {[%emt 0:00:17]} Qxg5 {[%emt 0:00:00]} 23. Nf4 {[%emt 0:00:14]} Nd5 {[%emt 0:00:00]} 24. Bxd5 {[%emt 0:00:08]} exd5 {[%emt 0:00:00]} 25. Qf3 {[%emt 0:00:08]} Qf5 {[%emt 0:00:00]} 26. Qh3 {[%emt 0:00:18]} Qxh3 {[%emt 0:00:00]} 27. Nxh3 {[%emt 0:00:22]} Rg4 {[%emt 0:00:00]} 28. f4 {[%emt 0:00:00]} Kd7 {[%emt 0:00:00]} 29. Ng5 {[%emt 0:00:06]} Rg8 {[%emt 0:00:00]} 30. Rf2 {[%emt 0:00:02]} Ke7 {[%emt 0:00:00]} 31. Nh3 {[%emt 0:00:09]} Rg3 {[%emt 0:00:00]} 32. Ng5 {[%emt 0:00:19]} R8xg5 {[%emt 0:03:30]} 33. fxg5 {[%emt 0:00:03]} Rxg5 {[%emt 0:00:00]} 0-1

[Event "Israeli U18-Team-ch 2024"]
[Site "Rishon LeZion"]
[Date "2024.08.01"]
[Round "1.7"]
[White "Gilor, Amit"]
[Black "Hodzic, Amir S"]
[Result "1-0"]
[ECO "C66"]
[WhiteElo "1905"]
[BlackElo "1882"]
[Annotator "RC"]
[PlyCount "155"]
[EventDate "2024.08.01"]
[EventType "team-tourn"]
[EventCountry "ISR"]
[SourceTitle "playchess.com"]
[Source "ChessBase"]
[SourceQuality "1"]
[TimeControl "3000+10"]

1. e4 {[%emt 0:00:03]} e5 {[%emt 0:00:08]} 2. Nf3 {[%emt 0:00:04]} Nc6 {[%emt 0:00:06]} 3. Nc3 {[%emt 0:00:05]} Nf6 {[%emt 0:00:07]} 4. Bb5 {[%emt 0:00:05]} d6 {[%emt 0:01:04]} 5. d4 {[%emt 0:01:12]} Bd7 {[%emt 0:01:52]} 6. Bxc6 {[%emt 0:02:37]} Bxc6 {[%emt 0:00:31]} 7. O-O {[%emt 0:04:47]} Be7 {[%emt 0:03:31]} 8. Re1 {[%emt 0:01:20]} exd4 {[%emt 0:03:55]} 9. Nxd4 {[%emt 0:01:05]} Bd7 {[%emt 0:00:57]} 10. f4 {[%emt 0:03:12]} O-O {[%emt 0:02:54]} 11. h3 {[%emt 0:03:06]} c5 {[%emt 0:07:09]} 12. Nf3 {[%emt 0:00:57]} Bc6 {[%emt 0:02:38]} 13. a4 {[%emt 0:03:24]} Re8 {[%emt 0:05:03]} 14. b3 {[%emt 0:03:05]} Nd7 {[%emt 0:03:04]} 15. Bb2 {[%emt 0:01:33]} Bf6 {[%emt 0:02:59]} 16. Qxd6 {[%emt 0:05:38]} Bxe4 {[%emt 0:03:16]} 17. Nxe4 {[%emt 0:01:32]} Bxb2 {[%emt 0:00:45]} 18. Rad1 {[%emt 0:01:08]} Nf6 {[%emt 0:03:04]} 19. Qxd8 {[%emt 0:01:06]} Rc8 {[%emt 0:10:17]} 20. Qxe8+ Rxe8 {[%emt 0:00:00]} 21. Rd8 {[%emt 0:01:23]} Rxd8 {[%emt 0:00:00]} 22. Nxc5 {[%emt 0:00:09]} Rc8 {[%emt 0:00:00]} 23. Nxb7 {[%emt 0:00:36]} Rxc2 {[%emt 0:00:00]} 24. Nd6 {[%emt 0:03:59]} Ba3 {[%emt 0:00:00]} 25. Nc4 {[%emt 0:00:57]} Bc5+ {[%emt 0:00:00]} 26. Kh2 {[%emt 0:01:31]} g6 {[%emt 0:00:00]} 27. Ng5 {[%emt 0:03:43]} Nh5 {[%emt 0:00:00]} 28. Ne4 {[%emt 0:00:19]} Bd4 {[%emt 0:00:00]} 29. Rd1 {[%emt 0:00:26]} Bg7 {[%emt 0:00:00]} 30. Rf1 {[%emt 0:01:26]} Bh6 {[%emt 0:00:00]} 31. Ng5 {[%emt 0:01:21]} Nxf4 {[%emt 0:00:00]} 32. Rxf4 {[%emt 0:01:13]} Bxg5 {[%emt 0:00:00]} 33. Rf1 {[%emt 0:00:04]} Be7 {[%emt 0:00:26]} 34. Rb1 {[%emt 0:00:49]} Bb4 {[%emt 0:00:21]} 35. Kh1 {[%emt 0:00:05]} Re2 {[%emt 0:00:26]} 36. Kh2 {[%emt 0:00:48]} Kf8 {[%emt 0:00:27]} 37. Kg3 {[%emt 0:00:17]} Ke7 {[%emt 0:00:21]} 38. Kf3 {[%emt 0:00:16]} Re6 {[%emt 0:00:01]} 39. Rd1 {[%emt 0:00:21]} h5 {[%emt 0:00:32]} 40. Rd5 {[%emt 0:00:21]} Bd6 {[%emt 0:00:33]} 41. Rb5 {[%emt 0:00:27]} Kf6 {[%emt 0:00:21]} 42. Rb7 {[%emt 0:00:09]} Bc5 {[%emt 0:00:01]} 43. b4 {[%emt 0:00:08]} Bd4 {[%emt 0:00:12]} 44. Rd7 {[%emt 0:00:03]} Bg1 {[%emt 0:00:03]} 45. b5 {[%emt 0:00:17]} a6 {[%emt 0:00:17]} 46. bxa6 {[%emt 0:00:19]} Rxa6 {[%emt 0:00:29]} 47. a5 {[%emt 0:00:10]} Ke6 {[%emt 0:00:00]} 48. Rb7 {[%emt 0:00:02]} Bc5 {[%emt 0:00:01]} 49. Rb5 {[%emt 0:00:06]} Bg1 {[%emt 0:00:03]} 50. Ke4 {[%emt 0:00:18]} Bh2 {[%emt 0:00:09]} 51. Rb7 {[%emt 0:00:23]} Kf6 {[%emt 0:00:12]} 52. Rb5 {[%emt 0:00:12]} Bc7 {[%emt 0:00:10]} 53. Nb6 {[%emt 0:00:06]} Ke6 {[%emt 0:00:14]} 54. Nc4 {[%emt 0:00:06]} Kf6 {[%emt 0:00:03]} 55. Kd5 {[%emt 0:00:03]} Ke7 {[%emt 0:00:07]} 56. Kc5 {[%emt 0:00:09]} Kd7 {[%emt 0:00:08]} 57. Nb6+ {[%emt 0:00:06]} Bxb6+ {[%emt 0:00:24]} 58. axb6 {[%emt 0:00:04]} Kc8 {[%emt 0:00:12]} 59. Kc6 {[%emt 0:00:03]} Ra1 {[%emt 0:00:01]} 60. b7+ {[%emt 0:00:30]} Kb8 {[%emt 0:00:03]} 61. Kb6 {[%emt 0:00:03]} Rf1 {[%emt 0:00:08]} 62. Rb2 {[%emt 0:00:28]} Rf6+ {[%emt 0:00:06]} 63. Kc5 {[%emt 0:00:02]} Rf5+ {[%emt 0:00:01]} 64. Kc6 {[%emt 0:00:03]} Rf1 {[%emt 0:00:09]} 65. Kd7 {[%emt 0:00:22]} Rc1 {[%emt 0:00:11]} 66. Ke7 {[%emt 0:00:05]} Rc7+ {[%emt 0:00:03]} 67. Kf6 {[%emt 0:00:02]} Rd7 {[%emt 0:00:06]} 68. g4 {[%emt 0:00:18]} hxg4 {[%emt 0:00:04]} 69. hxg4 {[%emt 0:00:02]} Rc7 {[%emt 0:00:05]} 70. g5 {[%emt 0:00:03]} Rd7 {[%emt 0:00:10]} 71. Re2 {[%emt 0:00:08]} Kxb7 {[%emt 0:00:41]} 72. Re7 {[%emt 0:00:05]} Kc6 {[%emt 0:00:49]} 73. Rxd7 {[%emt 0:00:37]} Kxd7 {[%emt 0:00:00]} 74. Kxf7 {[%emt 0:00:01]} Kd8 {[%emt 0:00:00]} 75. Kxg6 {[%emt 0:00:02]} Ke7 {[%emt 0:00:00]} 76. Kg7 {[%emt 0:00:01]} Ke8 {[%emt 0:00:00]} 77. g6 {[%emt 0:00:02]} Ke7 {[%emt 0:00:00]} 78. Kh7 {[%emt 0:00:01]} 1-0

[Event "Israeli U18-Team-ch 2024"]
[Site "Rishon LeZion"]
[Date "2024.08.01"]
[Round "1.8"]
[White "Shapira, David"]
[Black "Magen, Ofek"]
[Result "0-1"]
[ECO "A00"]
[WhiteElo "1636"]
[BlackElo "1911"]
[Annotator "RC"]
[PlyCount "72"]
[EventDate "2024.08.01"]
[EventType "team-tourn"]
[EventCountry "ISR"]
[SourceTitle "playchess.com"]
[Source "ChessBase"]
[SourceQuality "1"]
[TimeControl "3000+10"]

1. b4 {[%emt 0:00:10]} Nf6 {[%emt 0:01:48]} 2. Bb2 {[%emt 0:00:15]} e6 {[%emt 0:00:42]} 3. a3 {[%emt 0:00:14]} d5 {[%emt 0:01:37]} 4. e3 {[%emt 0:03:34]} Be7 {[%emt 0:01:33]} 5. c4 {[%emt 0:01:13]} O-O {[%emt 0:02:39]} 6. d4 {[%emt 0:02:47]} dxc4 {[%emt 0:01:26]} 7. Bxc4 {[%emt 0:00:18]} b6 {[%emt 0:02:05]} 8. Nf3 {[%emt 0:00:24]} c5 {[%emt 0:00:47]} 9. b5 {[%emt 0:04:22]} Bb7 {[%emt 0:00:51]} 10. O-O {[%emt 0:00:15]} Qc7 {[%emt 0:01:08]} 11. Nbd2 {[%emt 0:03:51]} cxd4 {[%emt 0:01:30]} 12. Bxd4 {[%emt 0:03:35]} Nbd7 {[%emt 0:01:26]} 13. Be2 {[%emt 0:04:17]} Rac8 {[%emt 0:01:09]} 14. Rc1 {[%emt 0:12:43]} Qb8 {[%emt 0:00:46]} 15. Nc4 {[%emt 0:01:43]} Rfd8 {[%emt 0:01:37]} 16. Qb3 {[%emt 0:01:30]} Ng4 {[%emt 0:01:38]} 17. g3 {[%emt 0:04:42]} Qa8 {[%emt 0:00:47]} 18. Nfe5 {[%emt 0:02:08]} Ngxe5 {[%emt 0:00:44]} 19. Nxe5 {[%emt 0:00:19]} Nxe5 {[%emt 0:00:21]} 20. Bxe5 {[%emt 0:00:09]} Bh1 {[%emt 0:00:37]} 21. f3 {[%emt 0:00:46]} Rxc1 {[%emt 0:00:01]} 22. Rxc1 {[%emt 0:00:37]} Bxf3 {[%emt 0:00:04]} 23. Bxf3 {[%emt 0:00:41]} Qxf3 {[%emt 0:00:03]} 24. Rf1 {[%emt 0:01:25]} Qe4 {[%emt 0:02:19]} 25. Bd4 {[%emt 0:00:29]} Bg5 {[%emt 0:00:16]} 26. Rf2 {[%emt 0:01:06]} Rc8 {[%emt 0:01:01]} 27. Rf1 {[%emt 0:00:45]} Rc2 {[%emt 0:00:48]} 28. Rf2 {[%emt 0:00:06]} Rc1+ {[%emt 0:00:12]} 29. Rf1 {[%emt 0:00:03]} Rxf1+ {[%emt 0:00:16]} 30. Kxf1 {[%emt 0:00:02]} Qh1+ {[%emt 0:00:11]} 31. Kf2 {[%emt 0:00:19]} Qxh2+ {[%emt 0:00:06]} 32. Kf3 {[%emt 0:00:04]} h5 {[%emt 0:01:30]} 33. Qc3 {[%emt 0:00:13]} Qg1 {[%emt 0:02:37]} 34. Qc8+ {[%emt 0:00:28]} Kh7 {[%emt 0:00:04]} 35. Qc2+ {[%emt 0:00:02]} f5 {[%emt 0:00:21]} 36. Be5 {[%emt 0:00:12]} Qxe3+ {[%emt 0:00:08]} 0-1

[Event "Israeli U18-Team-ch 2024"]
[Site "Rishon LeZion"]
[Date "2024.08.01"]
[Round "1.9"]
[White "Zakin, Lior"]
[Black "Uritsky, Yonathan"]
[Result "0-1"]
[ECO "B45"]
[WhiteElo "1681"]
[BlackElo "2173"]
[Annotator "RC"]
[PlyCount "84"]
[EventDate "2024.08.01"]
[EventType "team-tourn"]
[EventCountry "ISR"]
[SourceTitle "playchess.com"]
[Source "ChessBase"]
[SourceQuality "1"]
[TimeControl "3000+10"]

1. e4 {[%emt 0:00:03]} c5 {[%emt 0:00:10]} 2. Nf3 {[%emt 0:00:08]} Nc6 {[%emt 0:00:20]} 3. d4 {[%emt 0:00:26]} cxd4 {[%emt 0:00:04]} 4. Nxd4 {[%emt 0:00:08]} Nf6 {[%emt 0:00:08]} 5. Nc3 {[%emt 0:00:10]} e6 {[%emt 0:00:03]} 6. Be2 {[%emt 0:00:24]} Bb4 {[%emt 0:00:06]} 7. O-O {[%emt 0:00:07]} O-O {[%emt 0:01:31]} 8. Nxc6 {[%emt 0:00:24]} bxc6 {[%emt 0:00:19]} 9. Bd3 {[%emt 0:00:29]} d5 {[%emt 0:02:19]} 10. e5 {[%emt 0:00:19]} Nd7 {[%emt 0:00:04]} 11. Bf4 {[%emt 0:07:25]} f5 {[%emt 0:00:34]} 12. Qh5 {[%emt 0:07:10]} Qe8 {[%emt 0:03:07]} 13. Qf3 {[%emt 0:06:46]} Ba5 {[%emt 0:01:57]} 14. Ne2 {[%emt 0:05:21]} Bc7 {[%emt 0:01:29]} 15. Qe3 {[%emt 0:00:23]} c5 {[%emt 0:01:02]} 16. c3 {[%emt 0:00:29]} Rb8 {[%emt 0:00:58]} 17. Rab1 {[%emt 0:02:25]} h6 {[%emt 0:05:26]} 18. b4 {[%emt 0:06:06]} Qe7 {[%emt 0:04:21]} 19. Qg3 {[%emt 0:00:42]} Kh7 {[%emt 0:01:15]} 20. h4 {[%emt 0:00:01]} g6 {[%emt 0:00:39]} 21. bxc5 {[%emt 0:00:32]} Rxb1 {[%emt 0:01:43]} 22. Rxb1 {[%emt 0:00:02]} Nxc5 {[%emt 0:00:01]} 23. Bc2 {[%emt 0:00:46]} Bd7 {[%emt 0:02:49]} 24. Nd4 {[%emt 0:03:45]} Bb6 {[%emt 0:01:32]} 25. Qh3 {[%emt 0:05:27]} Rc8 {[%emt 0:01:20]} 26. g4 {[%emt 0:00:59]} Ne4 {[%emt 0:00:05]} 27. Bxe4 {[%emt 0:00:42]} dxe4 {[%emt 0:00:01]} 28. gxf5 {[%emt 0:00:28]} exf5 {[%emt 0:00:13]} 29. Qg3 {[%emt 0:00:57]} Qa3 {[%emt 0:01:08]} 30. Rb3 {[%emt 0:00:40]} Qxa2 {[%emt 0:00:02]} 31. e6 {[%emt 0:00:29]} Bxe6 {[%emt 0:00:33]} 32. Rb5 {[%emt 0:00:35]} Qa1+ {[%emt 0:00:21]} 33. Kh2 {[%emt 0:00:11]} Rxc3 {[%emt 0:00:36]} 34. Be3 {[%emt 0:00:01]} Bf7 {[%emt 0:05:06]} 35. Qf4 {[%emt 0:00:04]} Bc7 {[%emt 0:00:07]} 36. Re5 {[%emt 0:00:09]} Rc5 {[%emt 0:01:25]} 37. Qxh6+ {[%emt 0:00:13]} Kg8 {[%emt 0:13:26]} 38. Ne6 {[%emt 0:00:39]} Qxe5+ {[%emt 0:00:00]} 39. Kg2 {[%emt 0:00:06]} Qh2+ {[%emt 0:00:00]} 40. Kf1 {[%emt 0:00:00]} Qh1+ {[%emt 0:00:00]} 41. Ke2 {[%emt 0:00:01]} Qf3+ {[%emt 0:00:00]} 42. Kd2 {[%emt 0:00:00]} Ba5# {[%emt 0:00:00]} 0-1

[Event "Israeli U18-Team-ch 2024"]
[Site "Rishon LeZion"]
[Date "2024.08.01"]
[Round "1.10"]
[White "Kochavi, Dana"]
[Black "Lapushnian, Maya"]
[Result "1-0"]
[ECO "B42"]
[WhiteElo "2135"]
[BlackElo "1780"]
[Annotator "RC"]
[PlyCount "57"]
[EventDate "2024.08.01"]
[EventType "team-tourn"]
[EventCountry "ISR"]
[SourceTitle "playchess.com"]
[Source "ChessBase"]
[SourceQuality "1"]
[TimeControl "3000+10"]

1. e4 {[%emt 0:00:02]} c5 {[%emt 0:00:11]} 2. Nf3 {[%emt 0:00:03]} e6 {[%emt 0:00:08]} 3. d4 {[%emt 0:00:03]} cxd4 {[%emt 0:00:07]} 4. Nxd4 {[%emt 0:00:10]} a6 {[%emt 0:00:03]} 5. Bd3 {[%emt 0:00:06]} Bc5 {[%emt 0:00:04]} 6. Nb3 {[%emt 0:00:05]} Ba7 {[%emt 0:00:08]} 7. Bf4 {[%emt 0:00:03]} d6 {[%emt 0:00:11]} 8. Qd2 {[%emt 0:00:04]} Nc6 {[%emt 0:00:20]} 9. Nc3 {[%emt 0:00:04]} e5 {[%emt 0:00:59]} 10. Bg5 {[%emt 0:00:04]} Nge7 {[%emt 0:00:12]} 11. O-O-O {[%emt 0:00:07]} Be6 {[%emt 0:01:36]} 12. Kb1 {[%emt 0:02:11]} Qc7 {[%emt 0:01:14]} 13. h3 {[%emt 0:03:55]} O-O-O {[%emt 0:02:53]} 14. Nd5 {[%emt 0:08:55]} Bxd5 {[%emt 0:12:55]} 15. exd5 {[%emt 0:00:06]} Nd4 {[%emt 0:00:09]} 16. Nc1 {[%emt 0:04:48]} f6 {[%emt 0:04:44]} 17. Be3 {[%emt 0:00:31]} Kb8 {[%emt 0:10:39]} 18. g4 {[%emt 0:04:22]} Nxd5 {[%emt 0:04:18]} 19. Bxd4 {[%emt 0:00:06]} Bxd4 {[%emt 0:01:17]} 20. c3 {[%emt 0:00:38]} Ba7 {[%emt 0:01:20]} 21. Qc2 {[%emt 0:08:37]} Nf4 {[%emt 0:04:03]} 22. Bxh7 {[%emt 0:02:30]} Bxf2 {[%emt 0:00:44]} 23. Nd3 {[%emt 0:00:07]} Nxd3 {[%emt 0:02:38]} 24. Bxd3 {[%emt 0:00:08]} Bh4 {[%emt 0:01:50]} 25. Be4 {[%emt 0:00:49]} Bg5 {[%emt 0:01:16]} 26. Rd3 {[%emt 0:00:22]} Qc4 {[%emt 0:00:18]} 27. Bd5 {[%emt 0:00:31]} Qf4 {[%emt 0:00:11]} 28. Rhd1 {[%emt 0:01:03]} Rd7 {[%emt 0:00:10]} 29. Rf3 {[%emt 0:00:05]} 1-0